bitfinex/quotes_ETHUSD_20241003
["timestamp","ask_amount","ask_price","bid_price","bid_amount"]
[1727951986026,4.23449,2361.6,2361.1,7.23521]
[1727951986368,4.04197166,2361.3,2361.0,0.778]
[1727951986517,4.04197166,2361.3,2361.0,3.0]
[1727951986718,4.23523,2361.2,2360.7,5.03753]
[1727951986920,4.23539,2361.1,2360.7,5.03753]
[1727951987362,4.23515,2361.2,2360.8,4.23577]
[1727951987569,4.23515,2361.2,2360.7,5.03749]
[1727951987864,4.23532,2361.1,2360.8,3.0]
[1727951988061,4.23515,2361.2,2360.8,7.23581]
[1727951988422,4.23515,2361.2,2360.8,3.0]
[1727951988660,8.47041,2361.2,2360.8,3.0]
[1727951988850,4.23515,2361.2,2360.8,3.0]
[1727951989020,4.23515,2361.2,2360.8,4.23582]
[1727951990076,8.27730166,2361.1,2360.7,3.0]
[1727951990271,4.04197166,2361.1,2360.5,3.0]
[1727951990429,8.27774166,2360.9,2360.4,9.24839]
[1727951990628,8.27774166,2360.9,2360.5,7.23637]
[1727951991145,4.23509,2361.3,2360.8,4.23573]
[1727951991455,8.47019,2361.3,2360.8,4.23576]
[1727951991769,4.23513,2361.2,2360.8,4.23576]
[1727951992142,4.23513,2361.2,2360.8,8.47148]
[1727951992341,4.23513,2361.2,2360.8,4.23572]
[1727951992537,8.27694166,2361.3,2360.9,4.23567]
[1727951992737,8.27694166,2361.3,2360.6,4.23606]
[1727951992963,8.27694166,2361.3,2360.8,4.23576]
[1727951993130,4.23497,2361.3,2360.9,4.23565]
[1727951994131,4.23515,2361.2,2360.8,4.23583]
[1727951994850,4.23515,2361.2,2360.7,0.08470712]
[1727951994851,4.23533,2361.1,2360.7,4.23601]
[1727951995872,4.23515,2361.2,2360.8,4.23582]
[1727951996036,8.47046,2361.2,2360.8,4.23582]
[1727951996237,4.23544,2361.1,2360.7,4.23601]
[1727951996460,4.23552,2361.0,2360.6,3.0]
[1727951997035,4.23552,2361.0,2360.6,7.2362]
[1727951997536,8.27730166,2361.1,2360.6,7.23605]
[1727951997772,8.27730166,2361.1,2360.7,4.23601]
[1727951998132,4.23517,2361.2,2360.8,4.23584]
[1727951998328,4.23517,2361.2,2360.7,4.23601]
[1727951998329,4.23543,2361.1,2360.7,4.23601]
[1727951999976,4.23596,2360.8,2360.4,8.01205]
[1727952000858,4.23604,2360.7,2360.3,4.23671]
[1727952001072,4.23604,2360.7,2360.4,3.0]
[1727952001489,4.23622,2360.6,2360.2,4.23689]
[1727952001837,8.27774166,2360.9,2360.3,4.23666]
[1727952002087,0.8115,2361.0,2360.6,4.23615]
[1727952002378,4.23549,2361.0,2360.6,4.99928]
[1727952002584,4.23546,2361.1,2360.7,4.23595]
[1727952003443,8.27737166,2361.1,2360.7,4.23595]
[1727952003942,12.51280166,2361.1,2360.7,4.23595]
[1727952004397,8.27737166,2361.1,2360.7,4.23595]
[1727952004702,12.51281166,2361.1,2360.7,4.23595]
[1727952004865,8.27737166,2361.1,2360.7,4.23595]
[1727952006383,4.2354,2361.1,2360.7,4.23595]
[1727952007664,4.23572,2360.9,2360.6,0.7631]
[1727952007980,4.23572,2360.9,2360.5,4.23632]
[1727952007981,4.23592,2360.8,2360.4,8.06071]
[1727952008800,8.27769166,2360.9,2360.5,4.23637]
[1727952009088,4.23552,2361.0,2360.6,4.23612]
[1727952010100,8.47118,2361.0,2360.6,4.23612]
[1727952010514,4.23552,2361.0,2360.6,8.47226]
[1727952010808,8.47113,2361.0,2360.6,4.23612]
[1727952011186,9.35762621,2361.0,2360.6,4.23612]
[1727952011381,9.16384787,2361.1,2360.7,4.23595]
[1727952011567,0.88649621,2361.2,2360.8,5.04205]
[1727952011764,1.32974432,2361.3,2360.9,4.23559]
[1727952011765,5.12152621,2361.3,2360.9,4.23559]
[1727952013061,0.88649621,2361.2,2360.9,4.23559]
[1727952013267,9.35703621,2361.2,2360.8,5.04205]
[1727952014071,0.88649621,2361.1,2360.8,5.04205]
[1727952014709,5.12172621,2361.2,2360.8,5.04205]
[1727952014908,0.88649621,2361.1,2360.8,5.04205]
[1727952015073,0.88649621,2361.2,2360.8,5.04203]
[1727952015274,0.88649621,2361.2,2360.9,4.23565]
[1727952015505,0.88649621,2361.2,2361.0,4.2354]
[1727952015900,0.88649621,2361.2,2360.8,0.8063]
[1727952016095,0.88649621,2361.2,2360.9,4.2356]
[1727952016414,0.88649621,2361.2,2361.0,4.23548]
[1727952018411,0.88649621,2361.2,2361.1,4.23531]
[1727952018587,0.88649621,2361.3,2361.0,4.23538]
[1727952018910,5.12168621,2361.2,2360.8,5.04213]
[1727952019102,5.12181621,2361.1,2360.8,0.8063]
[1727952019305,5.12181621,2361.1,2360.7,7.23599]
[1727952020580,0.88649621,2361.0,2360.7,4.23599]
[1727952020900,0.88649621,2361.0,2360.9,4.23567]
[1727952021100,2.53129243,2361.2,2361.1,4.23531]
[1727952021101,0.88649621,2361.2,2361.1,4.23531]
[1727952021300,0.88649621,2361.3,2361.1,4.23531]
[1727952021598,0.88649621,2361.3,2361.1,4.23529]
[1727952021806,0.88649621,2361.3,2361.1,8.47047]
[1727952022186,0.88649621,2361.3,2361.1,4.23518]
[1727952023186,0.88649621,2361.4,2361.2,4.23513]
[1727952023399,0.88649621,2361.4,2361.3,5.00085]
[1727952023775,0.88649621,2361.4,2361.3,0.7659]
[1727952024279,0.88649621,2361.4,2361.3,5.00085]
[1727952024678,0.88649621,2361.4,2361.3,0.7659]
[1727952026126,0.88649621,2361.4,2361.2,4.23513]
[1727952026287,4.23498,2361.3,2361.1,3.0]
[1727952026486,4.23543,2361.1,2360.7,0.7909]
[1727952026698,5.12378374,2361.1,2360.7,5.02678]
[1727952026912,5.12378374,2361.1,2360.8,4.23584]
[1727952027110,0.88835374,2361.1,2360.8,4.23582]
[1727952027502,0.88835374,2361.1,2360.7,5.02686]
[1727952027503,5.12367374,2361.1,2360.7,5.02686]
[1727952027869,5.12367374,2361.1,2360.8,3.0]
[1727952028364,4.23595,2360.8,2360.5,0.7909]
[1727952028494,5.12430374,2360.8,2360.4,4.23645]
[1727952029544,5.12430374,2360.8,2360.3,0.7909]
[1727952029744,8.27828166,2360.6,2360.1,0.7854]
[1727952029895,4.23675,2360.3,2359.9,0.7854]
[1727952030095,4.23675,2360.3,2359.9,5.02277]
[1727952030298,5.12508374,2360.4,2360.0,4.23721]
[1727952031119,0.88835374,2360.4,2360.0,4.23721]
[1727952031396,5.12492374,2360.4,2360.0,4.23721]
[1727952031602,0.88835374,2360.4,2360.1,4.2371]
[1727952032630,0.88835374,2360.4,2360.0,4.23721]
[1727952032631,0.88835374,2360.3,2360.0,4.23721]
[1727952033205,5.12501374,2360.4,2360.0,8.47442]
[1727952033626,0.88835374,2360.4,2360.0,4.23721]
[1727952033837,0.88835374,2360.4,2360.1,4.23709]
[1727952034021,0.88835374,2360.4,2360.3,4.23674]
[1727952034203,0.88835374,2360.7,2360.5,4.23639]
[1727952034612,0.88835374,2360.8,2360.5,4.23639]
[1727952035741,0.88835374,2360.7,2360.4,4.23657]
[1727952035954,0.88835374,2360.7,2360.5,4.23626]
[1727952036104,0.88835374,2360.8,2360.6,4.23621]
[1727952036444,0.88835374,2360.8,2360.5,4.23626]
[1727952036650,5.12451374,2360.7,2360.2,3.0]
[1727952036819,0.88835374,2360.6,2360.3,4.23674]
[1727952037006,5.12451374,2360.7,2360.3,4.23674]
[1727952037833,0.88835374,2360.7,2360.3,3.0]
[1727952038033,5.12459374,2360.6,2360.2,4.2369]
[1727952038652,5.12459374,2360.6,2360.1,0.79]
[1727952038816,1.32974432,2360.7,2359.9,4.23745]
[1727952038817,4.23683,2360.3,2359.9,4.23745]
[1727952039023,4.04197166,2360.2,2359.9,4.23739]
[1727952039223,4.23683,2360.3,2359.9,4.23739]
[1727952040034,0.88835374,2360.3,2360.0,4.23728]
[1727952040219,9.1669354,2360.4,2360.0,4.23728]
[1727952040426,4.23676,2360.3,2359.9,4.23739]
[1727952040611,5.12511374,2360.3,2359.9,4.23739]
[1727952041011,4.23676,2360.3,2359.9,4.23739]
[1727952041416,4.23676,2360.3,2359.9,8.47478]
[1727952041817,4.23676,2360.3,2359.9,4.23739]
[1727952042019,0.88835374,2360.3,2360.2,4.23681]
[1727952042334,0.88835374,2360.7,2360.3,3.8168]
[1727952042520,1.32974432,2360.8,2360.5,4.23623]
[1727952042521,0.88835374,2360.8,2360.5,4.23623]
[1727952043962,5.12421374,2360.8,2360.4,4.23648]
[1727952046523,0.88835374,2360.8,2360.5,4.2363]
[1727952047238,5.12430374,2360.8,2360.4,4.23642]
[1727952047550,5.12439374,2360.7,2360.3,4.23667]
[1727952047947,0.7922,2360.6,2360.3,4.23667]
[1727952048347,5.02845,2360.6,2360.2,4.23683]
[1727952048549,5.91680374,2360.6,2360.2,4.23683]
[1727952048924,5.91680374,2360.6,2360.2,4.23679]
[1727952049452,4.23648,2360.5,2360.1,7.23706]
[1727952049648,8.27862166,2360.4,2360.0,7.23723]
[1727952050551,8.27862166,2360.4,2359.8,5.06085]
[1727952050552,4.80937166,2360.2,2359.8,5.06085]
[1727952050753,4.80937166,2360.2,2359.9,4.23737]
[1727952050987,0.7674,2360.2,2359.9,4.23737]
[1727952052471,0.7674,2360.2,2360.0,4.2372]
[1727952052852,0.7674,2360.2,2359.9,4.23737]
[1727952052853,0.7674,2360.2,2359.9,4.23744]
[1727952055748,5.00433,2360.2,2359.8,5.0609]
[1727952055953,5.00433,2360.2,2359.8,4.2376]
[1727952057446,0.7674,2360.2,2359.8,4.2376]
[1727952057651,0.7674,2360.2,2359.9,4.23745]
[1727952060748,0.7674,2360.2,2359.9,4.23735]
[1727952060951,5.00436,2360.2,2359.8,4.2376]
[1727952062081,0.7674,2360.2,2359.9,4.23733]
[1727952062384,0.7674,2360.2,2360.0,4.23728]
[1727952062600,0.7674,2360.2,2359.9,4.23733]
[1727952062954,4.2371,2360.1,2359.8,7.23762]
[1727952063184,4.2371,2360.1,2359.7,7.23774]
[1727952063970,4.2371,2360.1,2359.7,11.47546]
[1727952064179,4.2371,2360.1,2359.7,11.47544]
[1727952064561,4.2371,2360.1,2359.7,4.23772]
[1727952064752,4.2371,2360.1,2359.7,8.47548]
[1727952065084,5.00442,2360.2,2359.8,4.23762]
[1727952065290,0.88835374,2360.4,2360.2,4.23685]
[1727952065459,13.28509374,2360.7,2360.4,4.23655]
[1727952065661,13.28509374,2360.7,2360.3,4.23665]
[1727952065662,5.94509374,2360.7,2360.3,4.23665]
[1727952065864,5.94509374,2360.7,2360.3,8.47329]
[1727952066072,0.8206,2360.7,2360.1,0.7764]
[1727952066253,0.8206,2360.7,2360.2,4.8228703]
[1727952066453,0.8206,2360.7,2360.4,4.2365]
[1727952068258,0.88835374,2360.7,2360.5,4.23627]
[1727952068585,1.66265374,2360.9,2360.6,4.23618]
[1727952069351,1.66265374,2360.9,2360.5,0.8143]
[1727952069553,5.89833374,2360.9,2360.5,4.23634]
[1727952069863,4.23586,2360.8,2360.5,4.23634]
[1727952070051,5.12421374,2360.8,2360.5,4.23634]
[1727952070252,0.88835374,2360.8,2360.5,4.23634]
[1727952071096,0.88835374,2360.8,2360.5,8.4726]
[1727952071297,0.88835374,2360.8,2360.5,4.23626]
[1727952071454,0.88835374,2360.8,2360.6,4.23608]
[1727952071855,0.88835374,2360.8,2360.5,4.23631]
[1727952072052,0.88835374,2360.7,2360.3,7.23665]
[1727952072359,0.88835374,2360.7,2360.4,4.23644]
[1727952072574,0.88835374,2360.7,2360.5,4.23631]
[1727952072865,0.88835374,2360.7,2360.6,4.23621]
[1727952073060,5.12429374,2360.8,2360.5,1.147275]
[1727952073397,0.88835374,2360.7,2360.4,4.23656]
[1727952074189,0.88835374,2360.6,2360.4,4.23656]
[1727952075056,5.56568432,2360.8,2360.5,4.23639]
[1727952075057,0.88835374,2360.7,2360.5,4.23639]
[1727952075584,0.88835374,2361.0,2360.8,1.3335]
[1727952075764,0.88835374,2361.1,2361.0,7.23549]
[1727952075957,0.88835374,2361.4,2361.3,4.23495]
[1727952076151,0.88835374,2361.5,2361.4,4.78477]
[1727952076394,0.88835374,2361.7,2361.5,4.23459]
[1727952076584,0.88835374,2361.8,2361.7,4.23423]
[1727952076748,0.88835374,2361.9,2361.7,4.31890492]
[1727952077086,0.88835374,2361.9,2361.6,5.03501]
[1727952077250,0.88835374,2361.8,2361.6,5.03501]
[1727952077450,0.88835374,2361.9,2361.6,5.03501]
[1727952077651,0.88835374,2361.9,2361.6,9.26934]
[1727952077850,5.12212374,2362.0,2361.6,5.03493]
[1727952078086,5.12212374,2362.0,2361.6,9.26925]
[1727952078293,0.88835374,2361.9,2361.7,4.23417]
[1727952078477,0.88835374,2362.1,2361.8,4.23405]
[1727952078788,0.88835374,2362.1,2361.8,4.27815179]
[1727952078986,0.88835374,2362.1,2361.8,0.04410179]
[1727952079191,5.12200374,2362.1,2361.7,4.23421]
[1727952079354,0.88835374,2362.1,2361.7,8.46833]
[1727952080184,5.12175374,2362.2,2361.7,4.23412]
[1727952080515,1.65665374,2362.3,2361.9,4.23387]
[1727952080804,1.65665374,2362.3,2361.8,0.55]
[1727952081006,5.88982374,2362.3,2361.9,4.23383]
[1727952081165,5.00147,2362.3,2361.9,4.77237945]
[1727952081366,0.7683,2362.3,2361.9,4.77237945]
[1727952081609,5.00153,2362.3,2361.9,4.77237945]
[1727952082810,4.23341,2362.2,2361.8,4.23402]
[1727952083107,0.88835374,2362.6,2361.9,0.8319]
[1727952083292,9.55520213,2363.0,2362.5,4.23278]
[1727952083293,0.88835374,2362.9,2362.5,4.23278]
[1727952083492,5.00289,2363.0,2362.6,4.23261]
[1727952083866,5.00289,2363.0,2362.5,8.46549]
[1727952084067,5.00289,2363.0,2362.5,4.23271]
[1727952084321,5.00289,2363.0,2362.5,4.23268]
[1727952084471,5.00289,2363.0,2362.6,4.23262]
[1727952084676,5.00289,2363.0,2362.6,0.04320257]
[1727952085207,0.7709,2363.0,2362.4,4.23288]
[1727952085418,4.23227,2362.8,2362.4,4.23288]
[1727952086476,4.2322,2362.9,2362.4,4.23288]
[1727952086677,4.2322,2362.9,2362.4,5.46727724]
[1727952086905,4.23228,2362.8,2362.4,5.46727724]
[1727952087327,4.2322,2362.9,2362.4,5.46727724]
[1727952087637,4.23228,2362.8,2362.4,1.23439724]
[1727952087788,4.23228,2362.8,2362.4,4.23439724]
[1727952088128,4.2322,2362.9,2362.4,4.23439724]
[1727952088129,4.2322,2362.9,2362.4,4.29507711]
[1727952088293,4.23228,2362.8,2362.4,4.23439724]
[1727952089330,4.23246,2362.7,2362.3,3.0]
[1727952089837,4.23246,2362.7,2362.2,5.05051]
[1727952090744,5.0029,2363.0,2362.5,4.23267]
[1727952091436,5.0029,2363.0,2362.6,4.31726187]
[1727952091650,4.23176,2363.1,2362.7,0.8208]
[1727952091812,4.23191,2363.0,2362.7,0.9054347]
[1727952092839,4.23176,2363.1,2362.7,5.1378347]
[1727952092995,5.05251,2363.2,2362.8,4.23222]
[1727952093198,7.34,2363.3,2362.9,4.23208]
[1727952093506,5.03903,2363.6,2363.2,4.23147]
[1727952093822,5.03903,2363.6,2363.2,4.31608677]
[1727952094141,4.23102,2363.5,2363.2,0.08461677]
[1727952094343,4.23102,2363.5,2363.1,5.01879]
[1727952094344,4.23127,2363.4,2363.1,0.7871]
[1727952094551,4.23102,2363.5,2363.1,1.288998]
[1727952094838,8.46214,2363.5,2363.1,1.288998]
[1727952095205,4.23102,2363.5,2363.1,5.520628]
[1727952095400,4.23093,2363.6,2363.1,5.520628]
[1727952095649,4.23093,2363.6,2363.2,4.23145]
[1727952095816,4.23112,2363.5,2363.2,0.9752078]
[1727952096145,4.23091,2363.6,2363.1,5.520588]
[1727952096843,4.23091,2363.6,2363.1,9.752208]
[1727952097041,4.23102,2363.5,2363.1,5.520588]
[1727952097248,4.23086,2363.6,2363.2,0.8520588]
[1727952097405,4.23086,2363.6,2363.3,0.06635712]
[1727952097606,4.23086,2363.6,2363.2,5.0834988]
[1727952097846,4.23067,2363.7,2363.3,4.23127]
[1727952098051,4.2305,2363.8,2363.5,0.7784]
[1727952098413,4.2305,2363.8,2363.5,0.84475151]
[1727952098635,4.23067,2363.7,2363.5,0.7784]
[1727952099544,4.2305,2363.8,2363.5,1.279367]
[1727952099752,4.23038,2363.9,2363.5,1.279367]
[1727952099938,4.23038,2363.9,2363.6,0.03911573]
[1727952100137,4.23057,2363.8,2363.5,1.279367]
[1727952101410,5.04888,2364.1,2363.6,4.3152775]
[1727952101618,5.04888,2364.1,2363.7,4.23057]
[1727952101619,4.23007,2364.1,2363.7,4.23057]
[1727952101853,8.27123166,2364.5,2363.9,0.7534]
[1727952101854,4.22948,2364.4,2363.9,0.7534]
[1727952102051,4.22948,2364.4,2364.0,4.82153917]
[1727952102208,4.22948,2364.4,2364.0,4.31469312]
[1727952102414,4.22966,2364.3,2364.0,0.08459312]
[1727952103051,0.8057,2364.5,2364.0,0.08459312]
[1727952103274,4.22924,2364.5,2364.0,0.08459312]
[1727952103420,11.56887,2364.7,2364.1,8.45963]
[1727952103619,4.22923,2364.5,2364.2,0.0845857]
[1727952103842,4.22923,2364.5,2364.0,5.14108648]
[1727952104036,4.22923,2364.5,2363.9,4.98357]
[1727952104037,5.04649,2364.8,2363.9,3.7534]
[1727952104256,4.22966,2364.3,2363.9,3.7534]
[1727952104570,4.22989,2364.2,2363.9,3.7534]
[1727952104876,4.23003,2364.1,2363.7,3.7885]
[1727952105024,8.45974,2364.2,2363.7,8.01901]
[1727952105224,4.22998,2364.1,2363.8,1.28091445]
[1727952105838,4.23012,2364.0,2363.7,0.7885]
[1727952106042,4.22998,2364.1,2363.7,5.01904]
[1727952106251,4.22969,2364.3,2363.5,4.731957]
[1727952106252,4.23044,2363.9,2363.5,4.731957]
[1727952106433,5.01397,2364.0,2363.5,4.731957]
[1727952106632,5.01397,2364.0,2363.6,0.5489857]
[1727952106856,4.23053,2363.8,2363.5,0.500967]
[1727952107527,4.23053,2363.8,2363.4,3.7579]
[1727952107729,4.23127,2363.4,2362.9,0.7579]
[1727952107970,4.2315,2363.3,2362.9,0.7579]
[1727952108150,4.2315,2363.3,2362.9,1.680141]
[1727952108683,4.23192,2363.0,2362.6,4.99048]
[1727952108971,4.23192,2363.0,2362.6,0.7579]
[1727952108972,4.23222,2362.9,2362.6,0.7579]
[1727952109182,8.46392,2363.0,2362.6,4.99051]
[1727952109361,4.23192,2363.0,2362.6,0.7579]
[1727952109568,4.2322,2362.9,2362.4,4.99086]
[1727952109904,4.2322,2362.9,2362.4,5.913246]
[1727952110952,4.2322,2362.9,2362.5,3.0]
[1727952111152,4.2322,2362.9,2362.5,7.23278]
[1727952111784,4.23228,2362.8,2362.5,3.0]
[1727952111988,4.2322,2362.9,2362.5,7.23268]
[1727952112149,4.232,2363.0,2362.5,8.5472586]
[1727952113854,4.232,2363.0,2362.6,4.23261]
[1727952114060,4.232,2363.0,2362.5,8.5472586]
[1727952114574,4.2321,2362.9,2362.5,8.5472586]
[1727952115886,4.23226,2362.8,2362.5,1.3145786]
[1727952116185,4.2321,2362.9,2362.5,4.23276]
[1727952116787,4.232,2363.0,2362.5,4.23276]
[1727952117791,4.232,2363.0,2362.6,4.23261]
[1727952118074,5.01538,2363.2,2362.6,4.23261]
[1727952118324,4.23024,2364.0,2363.0,4.23176]
[1727952118325,0.7916,2363.5,2363.0,4.23176]
[1727952118814,4.23094,2363.6,2363.2,4.23154]
[1727952119614,8.46189,2363.6,2363.2,4.23154]
[1727952119811,4.23094,2363.6,2363.1,5.00439]
[1727952120016,8.46186,2363.6,2363.2,0.923627]
[1727952120568,4.23108,2363.5,2363.2,0.923627]
[1727952122143,4.23121,2363.4,2363.1,0.7727]
[1727952122436,4.23108,2363.5,2363.1,0.7727]
[1727952122642,4.23119,2363.4,2363.1,0.7727]
[1727952122937,0.7587,2363.2,2362.8,3.8166]
[1727952123111,0.7587,2363.2,2362.6,0.8166]
[1727952123327,0.7587,2363.2,2362.0,7.44]
[1727952123328,4.23212,2362.9,2362.5,4.23271]
[1727952123643,4.23192,2363.0,2362.5,5.079265]
[1727952123795,8.464,2363.0,2362.5,5.079265]
[1727952124245,4.23217,2362.9,2362.5,0.846555]
[1727952124550,4.23217,2362.9,2362.5,5.079335]
[1727952125306,4.23229,2362.8,2362.4,5.01977]
[1727952126614,4.23245,2362.7,2362.4,3.7868]
[1727952126948,4.23229,2362.8,2362.4,7.23297]
[1727952127242,4.23229,2362.8,2362.5,1.146611]
[1727952127441,8.46468,2362.8,2362.5,1.146611]
[1727952127739,4.23229,2362.8,2362.5,1.146611]
[1727952127940,4.23229,2362.8,2362.4,3.0]
[1727952128238,4.23244,2362.7,2362.4,3.0]
[1727952128488,4.2331,2362.4,2362.0,5.06159]
[1727952128649,4.23318,2362.3,2362.0,0.506159]
[1727952128945,4.23321,2362.3,2361.9,4.23374]
[1727952129106,4.23301,2362.4,2362.0,4.23364]
[1727952129645,4.23301,2362.4,2361.9,4.23374]
[1727952129852,8.46613,2362.4,2361.9,4.23374]
[1727952130015,4.23316,2362.3,2361.9,4.23374]
[1727952130358,4.23301,2362.4,2362.0,4.23368]
[1727952130719,4.23301,2362.4,2361.9,8.46747]
[1727952130914,4.23301,2362.4,2362.0,4.23369]
[1727952131116,9.24699,2362.6,2362.1,4.23343]
[1727952131318,11.57235,2362.8,2362.4,4.23281]
[1727952131556,7.34,2362.8,2362.5,4.2328]
[1727952131763,4.23212,2362.9,2362.5,5.0599]
[1727952132049,8.46432,2362.9,2362.5,5.906461]
[1727952132255,4.23231,2362.8,2362.5,1.673661]
[1727952132861,8.46468,2362.8,2362.5,1.673661]
[1727952133166,8.46468,2362.8,2362.5,0.8271]
[1727952133327,4.23231,2362.8,2362.5,0.8271]
[1727952133815,8.46471,2362.8,2362.5,0.8271]
[1727952134221,4.23231,2362.8,2362.5,0.8271]
[1727952134726,4.2326,2362.7,2362.5,0.8271]
[1727952135058,4.23277,2362.6,2362.2,8.06041]
[1727952135277,4.23272,2362.6,2362.2,9.344791]
[1727952135848,4.23272,2362.6,2362.2,6.344791]
[1727952136759,8.46544,2362.6,2362.2,6.344791]
[1727952136925,4.23272,2362.6,2362.2,5.06041]
[1727952137124,4.23272,2362.6,2362.2,0.8271]
[1727952137846,4.23282,2362.5,2362.2,0.8271]
[1727952138060,4.23282,2362.5,2362.0,5.01885]
[1727952138271,4.23325,2362.3,2362.0,0.7852]
[1727952138424,5.0455,2362.2,2361.7,5.03937]
[1727952138620,4.23352,2362.1,2361.8,0.927366]
[1727952139367,4.23352,2362.1,2361.7,5.03937]
[1727952139525,4.23352,2362.1,2361.7,9.27345]
[1727952139741,5.04537,2362.2,2361.8,4.23403]
[1727952139939,4.23399,2361.9,2361.5,4.23457]
[1727952140393,4.23399,2361.9,2361.5,5.163534]
[1727952141335,4.23358,2362.1,2361.5,5.163534]
[1727952141646,4.23377,2362.0,2361.6,4.23439]
[1727952142041,4.23377,2362.0,2361.5,5.163534]
[1727952142263,4.23377,2362.0,2361.5,9.398044]
[1727952142750,4.23377,2362.0,2361.6,5.2561344]
[1727952142951,4.23299,2362.4,2361.9,4.23379]
[1727952142952,4.23324,2362.3,2361.9,4.23379]
[1727952143189,4.23287,2362.5,2362.1,4.23337]
[1727952143959,4.23287,2362.5,2362.0,4.23366]
[1727952144285,4.23305,2362.4,2362.0,4.23366]
[1727952144801,4.23317,2362.3,2361.9,4.99755]
[1727952145494,4.23305,2362.4,2362.0,4.23361]
[1727952146153,8.46612,2362.4,2362.0,4.23361]
[1727952146352,4.23305,2362.4,2362.0,4.23361]
[1727952147408,8.46615,2362.4,2362.0,4.23361]
[1727952147594,4.23319,2362.3,2361.9,5.975814]
[1727952147795,4.23299,2362.4,2362.0,4.23359]
[1727952147991,4.23282,2362.5,2362.1,4.23351]
[1727952148306,4.23287,2362.5,2362.1,4.7835]
[1727952148689,4.23287,2362.5,2362.1,9.01689]
[1727952149084,4.23264,2362.6,2362.2,4.23333]
[1727952150613,4.23264,2362.6,2362.2,5.23709604]
[1727952151306,1.65955374,2362.7,2362.2,5.23709604]
[1727952151307,0.7712,2362.7,2362.2,5.23709604]
[1727952151612,5.89203374,2362.7,2362.2,5.23709604]
[1727952152171,4.2327,2362.6,2362.2,5.23709604]
[1727952152372,5.12105374,2362.6,2362.2,4.23333]
[1727952152683,0.88835374,2362.6,2362.3,4.23314]
[1727952152886,5.89203374,2362.7,2362.3,4.23314]
[1727952153086,10.12464374,2362.7,2362.2,4.23331]
[1727952153282,4.2327,2362.6,2362.2,4.23331]
[1727952153482,5.12105374,2362.6,2362.2,4.23331]
[1727952154899,4.23283,2362.5,2362.1,4.23349]
[1727952155100,9.35410374,2362.5,2362.1,4.23349]
[1727952155527,4.23324,2362.3,2361.9,0.7638]
[1727952155713,4.23324,2362.3,2361.8,4.23395]
[1727952155714,4.2334,2362.2,2361.8,4.23395]
[1727952156115,5.02084,2362.3,2361.9,4.23381]
[1727952156285,10.14251374,2362.3,2361.9,4.23381]
[1727952156626,5.02084,2362.3,2361.9,4.2338]
[1727952157128,4.23335,2362.2,2361.9,4.2338]
[1727952157342,10.14251374,2362.3,2361.9,4.2338]
[1727952157923,9.25416,2362.3,2361.9,4.2338]
[1727952158221,10.14251374,2362.3,2361.9,4.2338]
[1727952158425,5.02084,2362.3,2361.9,4.2338]
[1727952158729,5.90919374,2362.3,2361.9,4.2338]
[1727952159028,8.80113884,2362.3,2362.0,0.8313]
[1727952159201,9.55765285,2363.7,2362.9,3.55]
[1727952159397,0.44304517,2364.3,2364.1,4.22981]
[1727952159620,0.44304517,2364.3,2364.2,4.22976]
[1727952159786,0.8035,2365.1,2364.2,4.22965]
[1727952160143,0.8035,2365.1,2364.4,4.22927]
[1727952160428,0.8932,2365.6,2364.6,0.55]
[1727952160651,0.8932,2365.6,2364.4,3.0]
[1727952160652,19.56,2365.5,2364.8,8.45734]
[1727952160784,19.56,2365.5,2364.9,4.22849]
[1727952162328,21.6054,2365.5,2364.9,4.22849]
[1727952162799,21.6054,2365.5,2364.8,8.45726]
[1727952163012,21.6054,2365.5,2365.0,4.22831]
[1727952163332,21.6054,2365.5,2364.9,4.2285]
[1727952163488,2.1105108,2365.4,2364.9,4.2285]
[1727952164222,19.56,2365.3,2364.9,4.2285]
[1727952164622,19.56,2365.3,2365.1,4.22814]
[1727952164831,19.56,2365.5,2365.1,4.22814]
[1727952166899,19.56,2365.5,2365.1,8.45608]
[1727952167219,21.6054,2365.5,2365.1,4.22803]
[1727952167394,21.6054,2365.5,2365.2,4.22795]
[1727952167591,19.56,2365.5,2365.3,4.22779]
[1727952167826,15.33221,2365.2,2365.1,4.22803]
[1727952168730,15.33221,2365.2,2364.9,4.22839]
[1727952168946,15.33221,2365.2,2365.1,4.22815]
[1727952169230,15.33221,2365.2,2365.0,4.22832]
[1727952169531,15.33221,2365.1,2365.0,4.22818]
[1727952171187,15.33221,2365.1,2365.0,4.77818]
[1727952172436,15.33221,2365.1,2365.0,4.22818]
[1727952174535,0.11,2365.6,2365.2,4.22779]
[1727952174737,0.11,2365.6,2365.3,4.22766]
[1727952175233,0.11,2365.6,2365.2,4.22779]
[1727952175609,0.11,2365.6,2365.3,4.2277]
[1727952176312,0.11,2365.6,2365.2,4.22779]
[1727952176712,0.11,2365.6,2365.2,4.22794]
[1727952177326,0.11,2365.6,2365.2,4.22788]
[1727952177525,0.97808846,2365.6,2365.5,4.22743]
[1727952177730,0.11,2365.6,2365.5,4.22743]
[1727952179922,0.11,2365.6,2365.4,4.22758]
[1727952180666,0.11,2365.6,2365.5,7.22743]
[1727952180874,0.11,2365.6,2365.5,14.6866506]
[1727952181073,0.11,2365.6,2365.5,15.26200346]
[1727952181304,0.11,2365.6,2365.5,31.65217846]
[1727952181507,0.11,2365.6,2365.5,15.26200346]
[1727952181660,0.11,2365.6,2365.5,9.72163]
[1727952182173,0.0008,2365.7,2365.5,13.8879506]
[1727952182412,0.7958,2367.1,2366.6,4.22535]
[1727952182717,0.7958,2367.1,2366.8,4.22499]
[1727952182865,0.7958,2367.1,2366.9,4.22492]
[1727952183069,0.7958,2367.1,2366.8,4.22509]